Cogmind - Beta 13 @@@ ROGUE MODE // 2024.04.08 @ 18:15:22 Player: DarkCat Result: Self-destructed Performance ------------- Evolutions (2) 1000 Regions Visited (5) 1000 Robots Destroyed (21) 105 Value Destroyed (550) 550 Prototype IDs (23) 460 Alien Tech Used (0) 0 Bonus (314) 314 TOTAL SCORE: 3429 Bonus ------- Follower Combat Kills 14 Aligned with FarCom 300 Cogmind --------- Core Integrity 272/550 Matter 280/300 Energy 100/100 System Corruption 1% Temperature Cool (0) Movement Flying (50) Location -8/Materials Parts ------- > --- POWER (1) -------- (None) > --- PROPULSION (4) --- Flying Fortress v7 > --- UTILITY (3) ------ Improved Sensor Array Improved Signal Interpreter > --- WEAPON (3) ------- (None) > --- INVENTORY (5) ---- Compact Battery (1) Recoil Stabilizer Peak State ------------ > --- POWER ------------ Light Nuclear Core > --- PROPULSION ------- Flying Fortress v7 > --- UTILITY ---------- Humpback Improved Signal Interpreter > --- WEAPON ----------- Beam Rifle Light Assault Rifle > --- INVENTORY -------- Ion Engine Light Nuclear Core Aluminum Leg Aluminum Leg Improved Heat Sink Improved Heat Sink Huge Storage Unit High-capacity Matter Pod Improved Sensor Array Light Armor Plating Trap Reconfigurator Chronowheel [Rating: 47] Favorites ----------- Power Light Nuclear Core Engine Ion Engine Power Core Light Nuclear Core Propulsion Aluminum Leg Leg Aluminum Leg Flight Unit Flying Fortress v7 Utility Signal Interpreter Device Improved Heat Sink Storage Small Storage Unit Processor Signal Interpreter Weapon EM Pulse Gun Energy Gun EM Pulse Gun Ballistic Gun Assault Rifle Build | -11 -10 -10 -10 -9 -8 ------- Run | Yrd Mat Min Exi Min Mat Slots Evolved 4 | . . . . . 4 Power . | . . . . . . Propulsion 2 | . . . . . 2 Utility 1 | . . . . . 1 Weapon 1 | . . . . . 1 Parts Attached 27 | 6 5 3 1 . 12 Power 3 | 1 1 . . . 1 Engine 1 | 1 . . . . . Core 2 | . 1 . . . 1 Reactor . | . . . . . . Propulsion 8 | 2 . . . . 6 Treads . | . . . . . . Leg 6 | 2 . . . . 4 Wheel . | . . . . . . Hover . | . . . . . . Flight 2 | . . . . . 2 Utility 12 | 1 4 3 1 . 3 Device 2 | . 1 . . . 1 Storage 8 | 1 3 2 1 . 1 Processor 2 | . . 1 . . 1 Hackware . | . . . . . . Protection . | . . . . . . Artifact . | . . . . . . Weapon 4 | 2 . . . . 2 Energy Gun 2 | 1 . . . . 1 Energy Cannon . | . . . . . . Ballistic Gun 2 | 1 . . . . 1 Ballistic Cannon . | . . . . . . Launcher . | . . . . . . Special Weapon . | . . . . . . Impact Weapon . | . . . . . . Slashing Weapon . | . . . . . . Piercing Weapon . | . . . . . . Special Melee Weapon . | . . . . . . Unidentified Prototypes . | . . . . . . Parts Lost 9 | . . . . . 9 Power 2 | . . . . . 2 Propulsion 4 | . . . . . 4 Utility 1 | . . . . . 1 Weapon 2 | . . . . . 2 Highest Loss Streak 5 | . . . . . 5 To Critical Strikes . | . . . . . . Average Slot Usage (%) 84 | . 91 100 100 100 49 Engine 1 | . 11 . . . . Core 10 | . 2 14 14 14 7 Leg 21 | . 28 28 28 28 4 Flight 2 | . . . . . 7 Storage 12 | . 18 14 14 14 8 Processor 10 | . . 12 14 14 9 Energy Gun 11 | . 14 14 14 14 5 Ballistic Gun 11 | . 14 14 14 14 6 Naked Turns . | . . . . . . Heaviest Build 209 | 14 91 15 89 89 209 Greatest Support 50 | 20 20 20 20 20 50 Greatest Overweight (x) 5 | . 4 . 4 4 5 Average Overweight (x) . | . . . . 4 1 Largest Inventory Capacity 35 | 8 25 25 25 25 35 Average Capacity 19 | 7 12 8 14 25 32 Most Carried 18 | 4 8 8 12 12 18 Average Carried 8 | 1 4 8 9 12 9 Final Capacity 25 | 8 8 8 25 25 5 Final Carried 12 | 2 8 8 12 12 2 Class Distribution -------------------- 73% | Mutant 25% | Hauler-Mutant Dominant Class ---------------- Mutant | -10/Materials Mutant | -10/Mines Mutant | -10/Exiles Mutant | -9/Mines Hauler-Mutant | -8/Materials Resources | -11 -10 -10 -10 -9 -8 ----------- Run | Yrd Mat Min Exi Min Mat Matter Collected 889 | 260 287 150 . 10 182 Remotely . | . . . . . . Salvage Created 956 | 79 320 . . . 557 Parts 57 | 2 21 . . . 34 Haulers Intercepted . | . . . . . . Recyclers Shooed 1 | . . . . . 1 Parts Field Recycled . | . . . . . . Retrieved Matter . | . . . . . . Parts Self-Destructed . | . . . . . . Prevented . | . . . . . . Kills | -11 -10 -10 -10 -9 -8 ------- Run | Yrd Mat Min Exi Min Mat Combat Hostiles Destroyed 11 | . 4 . . . 7 Guns 11 | . 4 . . . 7 Classes Destroyed 7 | 1 3 . . . 3 Worker 1 | . . . . . 1 Tunneler 1 | . 1 . . . . Recycler 5 | 1 1 . . . 3 Watcher 3 | . 2 . . . 1 Swarmer 2 | . . . . . 2 Grunt 8 | . 4 . . . 4 Sentry 1 | . . . . . 1 Best Kill Streak 7 | 1 7 . . . 4 Combat Bots Only 2 | . 2 . . . 2 Max Kills in Single Turn 2 | 1 2 . . . 1 Gunslinging . | . . . . . . Exploded . | . . . . . . Melee . | . . . . . . Uniques/NPCs Destroyed . | . . . . . . Combat | -11 -10 -10 -10 -9 -8 -------- Run | Yrd Mat Min Exi Min Mat Hostile Shots Fired 164 | . 19 . . 5 140 Missed 38 | . 4 . . 3 31 Damage Taken 2082 | . 188 . . 26 1868 Core 316 | . 38 . . . 278 Absorbed by Shields . | . . . . . . Core Remaining (%) 92 | 100 . . . 84 . Volleys Fired 70 | 2 17 . . . 51 Largest 2 | 2 2 . . . 2 Hottest 76 | 60 60 . . . 76 Shots Fired 120 | 4 34 . . . 82 Gun 120 | 4 34 . . . 82 Cannon . | . . . . . . Launcher . | . . . . . . Special . | . . . . . . Kinetic 70 | 2 17 . . . 51 Thermal 15 | . . . . . 15 Explosive . | . . . . . . Electromagnetic 35 | 2 17 . . . 16 Robot Hit Streak 19 | 3 15 . . . 19 Robot Miss Streak 4 | 1 2 . . . 4 Penetration Max . | . . . . . . Secondary Targets 1 | . 1 . . . . Max Gunslinging Chain 1 | . 1 . . . . Shots Hit Robots 84 | 3 24 . . . 57 Core Hits 47 | 2 14 . . . 31 Critical Kills . | . . . . . . Critical Parts Destroyed . | . . . . . . Critical Strikes 1 | . . . . . 1 Burn 1 | . . . . . 1 Melee Attacks . | . . . . . . Impact . | . . . . . . Slashing . | . . . . . . Piercing . | . . . . . . Sneak Attacks . | . . . . . . Combat Hostiles . | . . . . . . Follow-up Attacks . | . . . . . . Damage Inflicted 1136 | 41 418 . . . 677 Guns 1043 | 41 344 . . . 658 Cannons . | . . . . . . Explosions 74 | . 74 . . . . Melee . | . . . . . . Ramming 19 | . . . . . 19 Kinetic 484 | 26 138 . . . 320 Thermal 280 | . 74 . . . 206 Explosive . | . . . . . . Electromagnetic 353 | 15 206 . . . 132 Impact . | . . . . . . Slashing . | . . . . . . Piercing . | . . . . . . Highest Corruption 1 | . . . . . 1 Average Corruption 1 | . . . . . 1 Corruption Purged . | . . . . . . Corruption Blocked . | . . . . . . Overload Shots . | . . . . . . Overflow Damage . | . . . . . . Projectiles . | . . . . . . Explosions . | . . . . . . Melee . | . . . . . . Knockbacks . | . . . . . . Impact . | . . . . . . Kinetic . | . . . . . . Secondary . | . . . . . . Self-Inflicted Damage . | . . . . . . Shots . | . . . . . . Rammed . | . . . . . . Targets Rammed 10 | . . . . . 10 Kicked 10 | . . . . . 10 Crushed . | . . . . . . Highest Temperature 340 | . 90 . . . 340 Average Temperature 102 | . 40 . . . 117 Received Heat Transfer 1083 | . 111 . . 18 954 Effects 2 | . . . . . 2 Interference 2 | . . . . . 2 Siege Activations . | . . . . . . Robots Corrupted . | . . . . . . Combat Hostiles . | . . . . . . Parts Fried . | . . . . . . Impact Corruptions . | . . . . . . Robots Melted . | . . . . . . Combat Hostiles . | . . . . . . Parts Melted 2 | . . . . . 2 Heat Transferred 692 | . 100 . . . 592 Parts Sabotaged . | . . . . . . Parts Stolen . | . . . . . . Parts Stripped . | . . . . . . Power Chain Reactions 1 | . 1 . . . . Alert | -11 -10 -10 -10 -9 -8 ------- Run | Yrd Mat Min Exi Min Mat Peak Influence 166 | 5 144 55 . . 166 Initial 55 | . 3 55 . . . Average 65 | 1 99 55 . . 75 Maximum Alert Level . | . . . . . . Low Security (%) 100 | 100 100 100 . 100 100 Level 1 . | . . . . . . Level 2 . | . . . . . . Level 3 . | . . . . . . Level 4 . | . . . . . . Level 5 . | . . . . . . High Security . | . . . . . . Max Security . | . . . . . . Squads Dispatched 2 | . . . . 1 1 Investigation 1 | . . . . . 1 Extermination . | . . . . . . Reinforcement . | . . . . . . Assault 1 | . . . . 1 . Garrison . | . . . . . . Intercept . | . . . . . . Searches Triggered . | . . . . . . Construction Impeded . | . . . . . . Haulers Reinforced . | . . . . . . Active Scanning Responses . | . . . . . . Cargo Convoy Interrupts . | . . . . . . Stealth | -11 -10 -10 -10 -9 -8 --------- Run | Yrd Mat Min Exi Min Mat Distress Signals 4 | . 1 . . . 3 Communications Jammed . | . . . . . . Distress Signals . | . . . . . . Times Spotted 33 | . 6 . . 4 23 Peak Tracking Total 8 | . 3 . . 5 8 Tactical Retreats 1 | . . . . . 1 Traps | -11 -10 -10 -10 -9 -8 ------- Run | Yrd Mat Min Exi Min Mat Traps Triggered 1 | . . . . . 1 Indirectly . | . . . . . . Trap Hack Attempts . | . . . . . . Triggered . | . . . . . . Disarmed . | . . . . . . Reprogrammed . | . . . . . . Reused . | . . . . . . Traps Extracted . | . . . . . . Installed . | . . . . . . Triggered . | . . . . . . Machines | -11 -10 -10 -10 -9 -8 ---------- Run | Yrd Mat Min Exi Min Mat Machines Disabled 4 | . . . . . 4 Max in Single Turn 1 | . . . . . 1 Machines Repaired . | . . . . . . Machines Dismantled . | . . . . . . Machines Sabotaged . | . . . . . . Overloaded Fab Kills . | . . . . . . Hacking | -11 -10 -10 -10 -9 -8 --------- Run | Yrd Mat Min Exi Min Mat Machines Accessed 6 | . . . 4 . 2 Terminals 2 | . . . . . 2 Fabricators . | . . . . . . Repair Stations . | . . . . . . Recycling Units . | . . . . . . Scanalyzers . | . . . . . . Garrison Access . | . . . . . . Total Hacks 16 | . . . 11 . 5 Successful 14 | . . . 11 . 3 Failed 2 | . . . . . 2 Catastrophic . | . . . . . . Database Lockouts . | . . . . . . Manual 2 | . . . 2 . . Terminals 5 | . . . . . 5 Fabricators . | . . . . . . Repair Stations . | . . . . . . Recycling Units . | . . . . . . Scanalyzers . | . . . . . . Garrison Access . | . . . . . . Terminal Hacks 14 | . . . 11 . 3 Record 10 | . . . 10 . . Unreport Threat 1 | . . . . . 1 Locate Traps 1 | . . . . . 1 Dispatch Records 1 | . . . . . 1 Derelict Proto ID Bank 1 | . . . 1 . . Fabricator Hacks . | . . . . . . Repair Station Hacks . | . . . . . . Recycling Unit Hacks . | . . . . . . Scanalyzer . | . . . . . . Garrison Access Hacks . | . . . . . . Unauthorized Hacks . | . . . . . . Terminals . | . . . . . . Fabricators . | . . . . . . Repair Stations . | . . . . . . Recycling Units . | . . . . . . Scanalyzers . | . . . . . . Garrison Access . | . . . . . . Data Cores Recovered . | . . . . . . Used . | . . . . . . Hacking Detections 2 | . . . . . 2 Full Trace Events 1 | . . . . . 1 Feedback Events 1 | . . . . . 1 Corruption 1 | . . . . . 1 Feedback Blocked . | . . . . . . Robot Schematics Acquired . | . . . . . . Robots Built . | . . . . . . Authchips . | . . . . . . Time . | . . . . . . Total Robot Build Rating . | . . . . . . Part Schematics Acquired . | . . . . . . Parts Built . | . . . . . . Authchips . | . . . . . . Time . | . . . . . . Total Part Build Rating . | . . . . . . Parts Repaired . | . . . . . . Time . | . . . . . . Parts Recycled . | . . . . . . Recycled Matter . | . . . . . . Retrieved Matter . | . . . . . . Retrieved Components . | . . . . . . Parts Scanalyzed . | . . . . . . Part Schematics Acquired . | . . . . . . Parts Damaged . | . . . . . . Bothacking | -11 -10 -10 -10 -9 -8 ------------ Run | Yrd Mat Min Exi Min Mat Used RIF Installer . | . . . . . . Robots Hacked . | . . . . . . Non-combat . | . . . . . . Combat . | . . . . . . Robot Hacks Applied . | . . . . . . Relay Couplers Released . | . . . . . . Fabnet Peak Effective % . | . . . . . . Robots Rewired . | . . . . . . Allies Hacked . | . . . . . . Hacks Repelled . | . . . . . . Allies | -11 -10 -10 -10 -9 -8 -------- Run | Yrd Mat Min Exi Min Mat Total Allies 1 | . . . . 1 . Largest Group 1 | . . . . 1 1 Highest-Rated Group 31 | . . . . 31 31 Highest-Rated Ally 31 | . . . . 31 31 Total Orders . | . . . . . . Ally Attacks 11 | . . . . 5 6 Total Damage 146 | . . . . 84 62 Kills 2 | . . . . . 2 Allies Corrupted . | . . . . . . Allies Melted . | . . . . . . Intel | -11 -10 -10 -10 -9 -8 ------- Run | Yrd Mat Min Exi Min Mat Robot Analysis Total . | . . . . . . Derelict Logs Recovered 2 | . . 1 . 1 . Drone Launches . | . . . . . . Drone Recoveries . | . . . . . . Exploration | -11 -10 -10 -10 -9 -8 ------------- Run | Yrd Mat Min Exi Min Mat Turns Passed 2512 | 56 292 257 1040 164 703 Spaces Moved 1265 | 35 141 208 623 42 216 Core 17 | 7 . . . . 10 Treads . | . . . . . . Legs 1054 | 28 141 208 623 42 12 Wheels . | . . . . . . Hover . | . . . . . . Flight 194 | . . . . . 194 Fastest Speed 50 | 50 120 120 120 400 50 Average Speed 173 | 106 153 120 166 400 226 Slowest Speed 470 | 120 400 120 400 400 470 Overloaded Moves . | . . . . . . Propulsion Burnouts . | . . . . . . Robots Hopped 3 | . . . . . 3 Cave-ins Triggered . | . . . . . . Exploration Rate (%) 34 | 4 23 49 93 17 23 Regions Visited 5 Branch Regions 3 Pre-discovered Areas 2 | . . . 1 1 . Known Exits Taken 3 | . . 1 1 1 . Unknown Exits Taken 2 | 1 1 . . . . Scrap Searched 1 | . . 1 . . . Spaces Dug . | . . . . . . Terrain Destroyed 2 | . 2 . . . . Melee . | . . . . . . Projectile . | . . . . . . AOE 2 | . 2 . . . . Terrain Rammed . | . . . . . . Walls Destroyed . | . . . . . . Machines Disabled . | . . . . . . Actions | -11 -10 -10 -10 -9 -8 --------- Run | Yrd Mat Min Exi Min Mat Total 1432 | 50 185 214 631 41 311 Wait 9 | . 5 4 . . . Move 1254 | 34 140 207 622 41 210 Hop 3 | . . . . . 3 Pick Up 43 | 8 12 . 4 . 19 Fast Attach . | . . . . . . Attach 20 | 6 3 . . . 11 Detach 4 | . 1 . . . 3 Swap 7 | . 2 3 1 . 1 Drop 12 | . 5 . 4 . 3 Fire 70 | 2 17 . . . 51 Melee . | . . . . . . Ram . | . . . . . . Kick 10 | . . . . . 10 Crush . | . . . . . . Escape Stasis . | . . . . . . Rewire . | . . . . . . Trap . | . . . . . . Miscellaneous . | . . . . . . Route ------- -11/Scrapyard -10/Materials (discovered 2 exits: [*Mat] / [*Min]) -10/Mines -10/Exiles (discovered 2 exits: *Min x2) -9/Mines -8/Materials History --------- Turn | Location | Event 5 | -11/Scrapyard | Discovered new exit (range 16) 57 | -11/Scrapyard | Entered Materials 295 | -10/Materials | Discovered new exit (range 10) 331 | -10/Materials | Discovered new exit (range 16) 334 | -10/Materials | Build established: Mutant 349 | -10/Materials | Entered Mines 366 | -10/Mines | Assembled infested the area 400 | -10/Mines | Met a Derelict bent on vengeance 487 | -10/Mines | Met 8R-AWN 513 | -10/Mines | Learned Materials terminal intel 602 | -10/Mines | Discovered new exit (range 5) 605 | -10/Mines | Identified exit to Exiles 606 | -10/Mines | Entered Exiles 633 | -10/Exiles | Discovered new exit (range 15) 645 | -10/Exiles | Welcomed by 8R-AWN 671 | -10/Exiles | Met EX-HEX 755 | -10/Exiles | Met EX-DEC 825 | -10/Exiles | Visited The Gauntlet 1008 | -10/Exiles | Discovered new exit (range 14) 1063 | -10/Exiles | Learned location of Zion (-7) 1103 | -10/Exiles | Met EX-BIN 1124 | -10/Exiles | Aligned with FarCom system 1126 | -10/Exiles | Given EX-Vault access code 1223 | -10/Exiles | Opened EX-Vault 1231 | -10/Exiles | Found Prototype Device 1244 | -10/Exiles | Found Prototype Flight Unit 1261 | -10/Exiles | Found Prototype Device 1266 | -10/Exiles | Identified Flying Fortress v7 1266 | -10/Exiles | Identified Trap Reconfigurator 1266 | -10/Exiles | Identified Chronowheel 1346 | -10/Exiles | Warned to stay clear of 0b10 Research branches 1642 | -10/Exiles | Identified exit to Mines 1646 | -10/Exiles | Stole three prototypes: Trap Reconfigurator, Chronowheel, Flying Fortress v7 1646 | -10/Exiles | Entered Mines 1678 | -9/Mines | Learned location of Storage (-9) 1743 | -9/Mines | Met a Derelict testing a Signal Generator 1746 | -9/Mines | Discovered new exit (range 6) 1806 | -9/Mines | Identified exit to Materials 1810 | -9/Mines | Entered Materials 1810 | -8/Materials | Accompanied by 1 ally 1810 | -8/Materials | Evolved 4 slots: Propulsion x2, Utility x1, Weapon x1 1811 | -8/Materials | Loaded intel: 12 terminal locations 2110 | -8/Materials | Build established: Hauler-Mutant 2385 | -8/Materials | Lost 3 parts (1p2w) 2449 | -8/Materials | Core integrity fell below 50% 2481 | -8/Materials | Lost 5 parts (1p3n1u) 2513 | -8/Materials | Self-destructed Last Messages --------------- >>Alert(Purge) Purged threat record, alert level lowered. >>Enumerate(Squads) Retrieving dispatch records... Found 23 active squads: 9x Security 4x Surveillance 4x Patrol 6x Transport Feedback: System corruption (+1%). 02464_ ALERT: Suspicious activity at Terminal M007. Dispatching Investigation squad. 02466_ Acquired Recoil Stabilizer. 02502_ R-06 Scavenger collects Lgt. Armor Plating. 02506_ R-06 Scavenger collects Hcp. Matter Pod. 02511_ Connecting with Recycling Unit... 02511_ R-06 Scavenger inserts Med. Matter Pod into recycling unit. 02512_ Acquired Com. Battery. Map ----- +----------------------------------------------------+ | ??????# ! ############## #????????????? | | ??????# ?????????????## ##????????????? | | ??????# """"" ??????????????# #?????????????? | | ??????# """"" ??????????????# #?????????????? | | ??????# """"" ??????????????#% #?????????????? | | ??????????? ??????????????# #?????????????? | | ???????????? ???????????????# #?????????????? | | ????????????Y"##????????#####?## %##????????????? | | ????????????""????????? # ##########+### | | ?????????????????????????""" # * %! | | ?????????????????????????""" + | | ???????????????????"T"????????# % % | | ???????????????????"""????????# %%!###+######/### | | ??????????????????????????????## %## ???# | | ???????????????????????????????# %## """ #?# | | ???????????????????????????????# ? ## """ #?# | | ???????????????????????????????# ## """ #?# | | ???????????????????????????????# % ## !#?# | | ???????????????????????????????# ## #?# """ | | ???????????????????????????????# ##?##+###?# """ | | ????????????????????????######## #???# #???# """ | | ????????????????????????# # #???# #???# | | ????????????????????????# """ # #???# #???# """ | | ????????????????????????# "Y" + ?##### ##??# """ | | ????????????????????????# r # Y #### """ | | ????????????????????????#@ !! # gg g gg g / | | ????????????????????????# !! # #####+## | | ????????????????????????## #############+###### #? | | ?????????????????????????###????????# ## #? | | ????????????????????????????????????# """ ## #? | | ????????????????????????????????????# """ ## #? | | ???T????????????????????????????????# """ ## #? | | ????????????????????????????????????# ## #? | | ????????????????????????????????????# """ + #? | | ????????????????????????????????????# """ ####? | | ????????????????????????????????????# """ #???? | | ????????????????????????????????????# / ??? | | ????????????????????????????????????############?? | | ?????????????????????????????????????????????????? | | ?????????????????????????????????????????????????? | | ?????????????????????????????????????????????????? | | ?????????????????????????????????????????????????? | | ?????????????????????????????????????????????????? | | ?????????????????????????????????????????????????? | | ?????????????????????????????????????????????????? | | ?????????????????????????????????????????????????? | | ?????????????????????????????????????????????????? | | ?????????????????????????????????????????????????? | | ?????????????????????????????????????????????????? | | ?????????????????????????????????????????????????? | +----------------------------------------------------+ Best States ------------- Heat Dissipation 39 Energy Generation 14 Energy Capacity 250 Matter Stores 300 Matter Capacity 400 Sight Range 16 Robot Scan Range 15 Terrain Scan Density 10 Evasion (%) 60 Item Schematics ----------------- None Robot Schematics ------------------ None Fabricated ------------ Nothing Alien Tech Used ----------------- None Achievements -------------- Tank Tourist Challenges ------------ None Game ------ Seed ReflectiveMetafieldStorm Manual? 0 Play Time 00:31:44 Cumulative 3.6 hours Start 2024.04.05 @ 16:35:53 End 2024.04.08 @ 18:15:22 Sessions 5 Manual Loads 0 Difficulty Rogue Special Mode None Game No. 7 Rogue 5 Adventurer 2 Explorer 0 Win Type - Total 0 Types 0/0/0/0/0/0/0/0/0 Lore% 5 Gallery% 9 Achievement% 11 Wizard Run 0 Options --------- Layout 1 ASCII 0 Keyboard 0 Movement Mouse Keybinds 0 Fullscreen 2 Font 24/Crisp Map View 50x35 Zoom Use 0% Tactical HUD 1 Map Filters NONE Filters NONE Steam 1 RUN: ce8fe2f9-b8cc-4de4-a2f5-5e510d59770f